Workbook

Sheet 农村分散特困
A1: 全县2025年10月农村特困人员分散供养名册
A2: 编制单位：安溪县民政局
A3: 乡镇 | B3: 姓名 | C3: 与本人关系 | D3: 保障 人数 | E3: 特困类别 | F3: 基本生活标准 | G3: 照料护理标准 | H3: 供养金额 | I3: 起始保障年月
A4: 凤城镇 | B4: 陈*益 | C4: 本人 | D4: 1 | E4: 分散全自理 | F4: 1099 | G4: 205 | H4: =F4+G4 -> 1304
A5: 凤城镇 | B5: 林*生 | C5: 本人 | D5: 1 | E5: 分散全自理 | F5: 1099 | G5: 205 | H5: 1304
A6: 凤城镇 | B6: 陈*仁 | C6: 本人 | D6: 1 | E6: 分散全自理 | F6: 1099 | G6: 205 | H6: 1304
A7: 凤城镇 | B7: 李*阳 | C7: 本人 | D7: 1 | E7: 分散半护理 | F7: 1099 | G7: 511 | H7: 1610 | I7: 202206
A8: 凤城镇 | B8: 杨*城 | C8: 本人 | D8: 1 | E8: 分散全自理 | F8: 1099 | G8: 205 | H8: 1304 | I8: 202407
A9: 城厢镇 | B9: 王*玺 | C9: 本人 | D9: 1 | E9: 分散全自理 | F9: 1099 | G9: 205 | H9: 1304
A10: 城厢镇 | B10: 许*茂 | C10: 本人 | D10: 1 | E10: 分散全自理 | F10: 1099 | G10: 205 | H10: 1304
A11: 城厢镇 | B11: 许*睦 | C11: 本人 | D11: 1 | E11: 分散全自理 | F11: 1099 | G11: 205 | H11: 1304
A12: 城厢镇 | B12: 柯*坤 | C12: 本人 | D12: 1 | E12: 分散全自理 | F12: 1099 | G12: 205 | H12: 1304
A13: 城厢镇 | B13: 赵*利 | C13: 本人 | D13: 1 | E13: 分散全自理 | F13: 1099 | G13: 205 | H13: 1304
A14: 城厢镇 | B14: 梁* | C14: 本人 | D14: 1 | E14: 分散全自理 | F14: 1099 | G14: 205 | H14: 1304
A15: 城厢镇 | B15: 谢*兴 | C15: 本人 | D15: 1 | E15: 分散全自理 | F15: 1099 | G15: 205 | H15: 1304
A16: 城厢镇 | B16: 吴*财 | C16: 本人 | D16: 1 | E16: 分散全自理 | F16: 1099 | G16: 205 | H16: 1304
A17: 城厢镇 | B17: 谢*明 | C17: 本人 | D17: 1 | E17: 分散全自理 | F17: 1099 | G17: 205 | H17: 1304
A18: 城厢镇 | B18: 吴*月 | C18: 本人 | D18: 1 | E18: 分散全自理 | F18: 1099 | G18: 205 | H18: =F18+G18 -> 1304
A19: 城厢镇 | B19: 谢*水 | C19: 本人 | D19: 1 | E19: 分散全自理 | F19: 1099 | G19: 205 | H19: 1304
A20: 城厢镇 | B20: 吴*玄 | C20: 本人 | D20: 1 | E20: 分散全自理 | F20: 1099 | G20: 205 | H20: 1304
A21: 城厢镇 | B21: 黄* | C21: 本人 | D21: 1 | E21: 分散全自理 | F21: 1099 | G21: 205 | H21: 1304
A22: 城厢镇 | B22: 谢*买 | C22: 本人 | D22: 1 | E22: 分散全自理 | F22: 1099 | G22: 205 | H22: 1304
A23: 城厢镇 | B23: 谢*山 | C23: 本人 | D23: 1 | E23: 分散全自理 | F23: 1099 | G23: 205 | H23: 1304
A24: 城厢镇 | B24: 孙*芳 | C24: 本人 | D24: 1 | E24: 分散全自理 | F24: 1099 | G24: 205 | H24: 1304 | I24: 201801
A25: 城厢镇 | B25: 倪*宜 | C25: 本人 | D25: 1 | E25: 分散全自理 | F25: 1099 | G25: 205 | H25: 1304 | I25: 201808
A26: 城厢镇 | B26: 许*凡 | C26: 本人 | D26: 1 | E26: 分散全自理 | F26: 1099 | G26: 205 | H26: 1304 | I26: 201905
A27: 城厢镇 | B27: 陈*章 | C27: 本人 | D27: 1 | E27: 分散全自理 | F27: 1099 | G27: 205 | H27: 1304 | I27: 201912
A28: 城厢镇 | B28: 吴*才 | C28: 本人 | D28: 1 | E28: 分散全自理 | F28: 1099 | G28: 205 | H28: 1304 | I28: 201912
A29: 城厢镇 | B29: 吴*生 | C29: 本人 | D29: 1 | E29: 分散全自理 | F29: 1099 | G29: 205 | H29: 1304 | I29: 202201
A30: 城厢镇 | B30: 赵*紫 | C30: 本人 | D30: 1 | E30: 分散全自理 | F30: 1099 | G30: 205 | H30: 1304 | I30: 202202
A31: 城厢镇 | B31: 李*山 | C31: 本人 | D31: 1 | E31: 分散全自理 | F31: 1099 | G31: 205 | H31: 1304 | I31: 202209
A32: 城厢镇 | B32: 谢*章 | C32: 本人 | D32: 1 | E32: 分散全自理 | F32: 1099 | G32: 205 | H32: 1304 | I32: 202209
A33: 城厢镇 | B33: 陈*水 | C33: 本人 | D33: 1 | E33: 分散全自理 | F33: 1099 | G33: 205 | H33: 1304 | I33: 202209
A34: 城厢镇 | B34: 谢*河 | C34: 本人 | D34: 1 | E34: 分散全自理 | F34: 1099 | G34: 205 | H34: 1304 | I34: 202210
A35: 城厢镇 | B35: 谢*强 | C35: 本人 | D35: 1 | E35: 分散全自理 | F35: 1099 | G35: 205 | H35: 1304 | I35: 202307
A36: 城厢镇 | B36: 谢*礼 | C36: 本人 | D36: 1 | E36: 分散全自理 | F36: 1099 | G36: 205 | H36: 1304 | I36: 202403
A37: 城厢镇 | B37: 谢*生 | C37: 本人 | D37: 1 | E37: 分散全自理 | F37: 1099 | G37: 205 | H37: 1304 | I37: 202403
A38: 城厢镇 | B38: 谢*忠 | C38: 本人 | D38: 1 | E38: 分散全自理 | F38: 1099 | G38: 205 | H38: 1304 | I38: 202403
A39: 城厢镇 | B39: 陈*生 | C39: 本人 | D39: 1 | E39: 分散全自理 | F39: 1099 | G39: 205 | H39: 1304 | I39: 202408
A40: 城厢镇 | B40: 陈*元 | C40: 本人 | D40: 1 | E40: 分散全自理 | F40: 1099 | G40: 205 | H40: 1304 | I40: 202408
A41: 城厢镇 | B41: 陈*生 | C41: 本人 | D41: 1 | E41: 分散全自理 | F41: 1099 | G41: 205 | H41: 1304 | I41: 202408
A42: 城厢镇 | B42: 李*忠 | C42: 本人 | D42: 1 | E42: 分散全自理 | F42: 1099 | G42: 205 | H42: 1304 | I42: 202509
A43: 参内镇 | B43: 黄*道 | C43: 本人 | D43: 1 | E43: 分散全自理 | F43: 1099 | G43: 205 | H43: 1304
A44: 参内镇 | B44: 蔡*源 | C44: 本人 | D44: 1 | E44: 分散全自理 | F44: 1099 | G44: 205 | H44: 1304
A45: 参内镇 | B45: 王*生 | C45: 本人 | D45: 1 | E45: 分散全自理 | F45: 1099 | G45: 205 | H45: 1304
A46: 参内镇 | B46: 黄*元 | C46: 本人 | D46: 1 | E46: 分散全自理 | F46: 1099 | G46: 205 | H46: 1304
A47: 参内镇 | B47: 黄*祥 | C47: 本人 | D47: 1 | E47: 分散全自理 | F47: 1099 | G47: 205 | H47: 1304 | I47: 202010
A48: 参内镇 | B48: 黄*心 | C48: 本人 | D48: 1 | E48: 分散全自理 | F48: 1099 | G48: 205 | H48: 1304 | I48: 202508
A49: 参内镇 | B49: 黄*金 | C49: 本人 | D49: 1 | E49: 分散全自理 | F49: 1099 | G49: 205 | H49: 1304 | I49: 202508
A50: 参内镇 | B50: 李*忠 | C50: 本人 | D50: 1 | E50: 分散全自理 | F50: 1099 | G50: 205 | H50: 1304 | I50: 202508
A51: 参内镇 | B51: 李*泉 | C51: 本人 | D51: 1 | E51: 分散全自理 | F51: 1099 | G51: 205 | H51: 1304 | I51: 202508
A52: 参内镇 | B52: 王*城 | C52: 本人 | D52: 1 | E52: 分散全自理 | F52: 1099 | G52: 205 | H52: 1304 | I52: 202508
A53: 参内镇 | B53: 黄*思 | C53: 本人 | D53: 1 | E53: 分散全自理 | F53: 1099 | G53: 205 | H53: 1304 | I53: 202508
A54: 参内镇 | B54: 黄*荣 | C54: 本人 | D54: 1 | E54: 分散全自理 | F54: 1099 | G54: 205 | H54: 1304 | I54: 202509
A55: 参内镇 | B55: 黄*林 | C55: 本人 | D55: 1 | E55: 分散全自理 | F55: 1099 | G55: 205 | H55: 1304 | I55: 202510
A56: 蓬莱镇 | B56: 唐*金 | C56: 本人 | D56: 1 | E56: 分散全自理 | F56: 1099 | G56: 205 | H56: =F56+G56 -> 1304
A57: 蓬莱镇 | B57: 傅*加 | C57: 本人 | D57: 1 | E57: 分散全自理 | F57: 1099 | G57: 205 | H57: 1304
A58: 蓬莱镇 | B58: 李*林 | C58: 本人 | D58: 1 | E58: 分散全自理 | F58: 1099 | G58: 205 | H58: 1304
A59: 蓬莱镇 | B59: 蔡*德 | C59: 本人 | D59: 1 | E59: 分散全自理 | F59: 1099 | G59: 205 | H59: 1304
A60: 蓬莱镇 | B60: 刘*有 | C60: 本人 | D60: 1 | E60: 分散全自理 | F60: 1099 | G60: 205 | H60: 1304
A61: 蓬莱镇 | B61: 苏*坤 | C61: 本人 | D61: 1 | E61: 分散全自理 | F61: 1099 | G61: 205 | H61: 1304
A62: 蓬莱镇 | B62: 傅*平 | C62: 本人 | D62: 1 | E62: 分散全自理 | F62: 1099 | G62: 205 | H62: 1304
A63: 蓬莱镇 | B63: 刘*珠 | C63: 本人 | D63: 1 | E63: 分散全自理 | F63: 1099 | G63: 205 | H63: 1304
A64: 蓬莱镇 | B64: 胡*明 | C64: 本人 | D64: 1 | E64: 分散全自理 | F64: 1099 | G64: 205 | H64: 1304
A65: 蓬莱镇 | B65: 林*由 | C65: 本人 | D65: 1 | E65: 分散全自理 | F65: 1099 | G65: 205 | H65: 1304
A66: 蓬莱镇 | B66: 刘*裕 | C66: 本人 | D66: 1 | E66: 分散全自理 | F66: 1099 | G66: 205 | H66: 1304
A67: 蓬莱镇 | B67: 刘*林 | C67: 本人 | D67: 1 | E67: 分散全自理 | F67: 1099 | G67: 205 | H67: 1304
A68: 蓬莱镇 | B68: 林*标 | C68: 本人 | D68: 1 | E68: 分散全自理 | F68: 1099 | G68: 205 | H68: 1304
A69: 蓬莱镇 | B69: 胡*源 | C69: 本人 | D69: 1 | E69: 分散全自理 | F69: 1099 | G69: 205 | H69: 1304
A70: 蓬莱镇 | B70: 唐*英 | C70: 本人 | D70: 1 | E70: 分散全自理 | F70: 1099 | G70: 205 | H70: 1304 | I70: 201911
A71: 蓬莱镇 | B71: 胡*雨 | C71: 本人 | D71: 1 | E71: 分散全自理 | F71: 1099 | G71: 205 | H71: 1304 | I71: 202007
A72: 蓬莱镇 | B72: 李* | C72: 本人 | D72: 1 | E72: 分散全自理 | F72: 1099 | G72: 205 | H72: 1304 | I72: 202106
A73: 蓬莱镇 | B73: 傅*结 | C73: 本人 | D73: 1 | E73: 分散全自理 | F73: 1099 | G73: 205 | H73: 1304 | I73: 202106
A74: 蓬莱镇 | B74: 柯*根 | C74: 本人 | D74: 1 | E74: 分散全自理 | F74: 1099 | G74: 205 | H74: 1304 | I74: 202107
A75: 蓬莱镇 | B75: 陈*林 | C75: 本人 | D75: 1 | E75: 分散全自理 | F75: 1099 | G75: 205 | H75: 1304 | I75: 202209
A76: 蓬莱镇 | B76: 胡*火 | C76: 本人 | D76: 1 | E76: 分散全自理 | F76: 1099 | G76: 205 | H76: 1304 | I76: 202211
A77: 蓬莱镇 | B77: 蔡*福 | C77: 本人 | D77: 1 | E77: 分散全自理 | F77: 1099 | G77: 205 | H77: 1304 | I77: 202211
A78: 蓬莱镇 | B78: 胡*林 | C78: 本人 | D78: 1 | E78: 分散全自理 | F78: 1099 | G78: 205 | H78: 1304 | I78: 202308
A79: 蓬莱镇 | B79: 苏*从 | C79: 本人 | D79: 1 | E79: 分散全自理 | F79: 1099 | G79: 205 | H79: 1304 | I79: 202507
A80: 魁斗镇 | B80: 黄*玉 | C80: 本人 | D80: 1 | E80: 分散全自理 | F80: 1099 | G80: 205 | H80: =F80+G80 -> 1304
A81: 魁斗镇 | B81: 陈*庄 | C81: 本人 | D81: 1 | E81: 分散全自理 | F81: 1099 | G81: 205 | H81: 1304
A82: 魁斗镇 | B82: 黄*钟 | C82: 本人 | D82: 1 | E82: 分散全自理 | F82: 1099 | G82: 205 | H82: 1304
A83: 魁斗镇 | B83: 黄*良 | C83: 本人 | D83: 1 | E83: 分散全自理 | F83: 1099 | G83: 205 | H83: 1304
A84: 魁斗镇 | B84: 龚*其 | C84: 本人 | D84: 1 | E84: 分散全自理 | F84: 1099 | G84: 205 | H84: 1304
A85: 魁斗镇 | B85: 龚*莉 | C85: 本人 | D85: 1 | E85: 分散全自理 | F85: 1099 | G85: 205 | H85: 1304 | I85: 201811
A86: 魁斗镇 | B86: 王*芳 | C86: 本人 | D86: 1 | E86: 分散全自理 | F86: 1099 | G86: 205 | H86: 1304 | I86: 201910
A87: 魁斗镇 | B87: 蔡*进 | C87: 本人 | D87: 1 | E87: 分散全自理 | F87: 1099 | G87: 205 | H87: 1304 | I87: 201910
A88: 魁斗镇 | B88: 陈*从 | C88: 本人 | D88: 1 | E88: 分散全自理 | F88: 1099 | G88: 205 | H88: 1304 | I88: 201910
A89: 魁斗镇 | B89: 易*国 | C89: 本人 | D89: 1 | E89: 分散全自理 | F89: 1099 | G89: 205 | H89: 1304 | I89: 202001
A90: 魁斗镇 | B90: 蔡*林 | C90: 本人 | D90: 1 | E90: 分散全自理 | F90: 1099 | G90: 205 | H90: 1304 | I90: 202001
A91: 魁斗镇 | B91: 陈*碧 | C91: 本人 | D91: 1 | E91: 分散全自理 | F91: 1099 | G91: 205 | H91: 1304 | I91: 202001
A92: 魁斗镇 | B92: 易*图 | C92: 本人 | D92: 1 | E92: 分散全自理 | F92: 1099 | G92: 205 | H92: 1304 | I92: 202001
A93: 魁斗镇 | B93: 易*家 | C93: 本人 | D93: 1 | E93: 分散全自理 | F93: 1099 | G93: 205 | H93: 1304 | I93: 202010
A94: 魁斗镇 | B94: 王*三 | C94: 本人 | D94: 1 | E94: 分散全自理 | F94: 1099 | G94: 205 | H94: 1304 | I94: 202207
A95: 魁斗镇 | B95: 林*石 | C95: 本人 | D95: 1 | E95: 分散全自理 | F95: 1099 | G95: 205 | H95: 1304 | I95: 202210
A96: 魁斗镇 | B96: 龚*保 | C96: 本人 | D96: 1 | E96: 分散全自理 | F96: 1099 | G96: 205 | H96: 1304 | I96: 202306
A97: 魁斗镇 | B97: 易*金 | C97: 本人 | D97: 1 | E97: 分散全自理 | F97: 1099 | G97: 205 | H97: 1304 | I97: 202407
A98: 金谷镇 | B98: 郑*仕 | C98: 本人 | D98: 1 | E98: 分散全自理 | F98: 1099 | G98: 205 | H98: 1304
A99: 金谷镇 | B99: 罗* | C99: 本人 | D99: 1 | E99: 分散全自理 | F99: 1099 | G99: 205 | H99: 1304
A100: 金谷镇 | B100: 谢*全 | C100: 本人 | D100: 1 | E100: 分散全自理 | F100: 1099 | G100: 205 | H100: 1304
A101: 金谷镇 | B101: 洪*发 | C101: 本人 | D101: 1 | E101: 分散全自理 | F101: 1099 | G101: 205 | H101: 1304
A102: 金谷镇 | B102: 洪*生 | C102: 本人 | D102: 1 | E102: 分散全自理 | F102: 1099 | G102: 205 | H102: 1304
A103: 金谷镇 | B103: 杨*荣 | C103: 本人 | D103: 1 | E103: 分散全自理 | F103: 1099 | G103: 205 | H103: 1304
A104: 金谷镇 | B104: 沈*元 | C104: 本人 | D104: 1 | E104: 分散全自理 | F104: 1099 | G104: 205 | H104: 1304
A105: 金谷镇 | B105: 谢*碧 | C105: 本人 | D105: 1 | E105: 分散全自理 | F105: 1099 | G105: 205 | H105: 1304
A106: 金谷镇 | B106: 吴*绵 | C106: 本人 | D106: 1 | E106: 分散全自理 | F106: 1099 | G106: 205 | H106: 1304
A107: 金谷镇 | B107: 陈*川 | C107: 本人 | D107: 1 | E107: 分散全自理 | F107: 1099 | G107: 205 | H107: 1304
A108: 金谷镇 | B108: 林*兴 | C108: 本人 | D108: 1 | E108: 分散全自理 | F108: 1099 | G108: 205 | H108: 1304
A109: 金谷镇 | B109: 陈*乞 | C109: 本人 | D109: 1 | E109: 分散全自理 | F109: 1099 | G109: 205 | H109: 1304
A110: 金谷镇 | B110: 陈*兴 | C110: 本人 | D110: 1 | E110: 分散全自理 | F110: 1099 | G110: 205 | H110: 1304
A111: 金谷镇 | B111: 谢*同 | C111: 本人 | D111: 1 | E111: 分散全自理 | F111: 1099 | G111: 205 | H111: 1304
A112: 金谷镇 | B112: 李*东 | C112: 本人 | D112: 1 | E112: 分散全自理 | F112: 1099 | G112: 205 | H112: 1304
A113: 金谷镇 | B113: 叶*概 | C113: 本人 | D113: 1 | E113: 分散全自理 | F113: 1099 | G113: 205 | H113: 1304
A114: 金谷镇 | B114: 沈*太 | C114: 本人 | D114: 1 | E114: 分散全自理 | F114: 1099 | G114: 205 | H114: 1304
A115: 金谷镇 | B115: 陈*成 | C115: 本人 | D115: 1 | E115: 分散全自理 | F115: 1099 | G115: 205 | H115: 1304
A116: 金谷镇 | B116: 黄*坤 | C116: 本人 | D116: 1 | E116: 分散全自理 | F116: 1099 | G116: 205 | H116: 1304
A117: 金谷镇 | B117: 叶*图 | C117: 本人 | D117: 1 | E117: 分散全自理 | F117: 1099 | G117: 205 | H117: 1304
A118: 金谷镇 | B118: 陈*艺 | C118: 本人 | D118: 1 | E118: 分散全自理 | F118: 1099 | G118: 205 | H118: 1304
A119: 金谷镇 | B119: 张*兴 | C119: 本人 | D119: 1 | E119: 分散全自理 | F119: 1099 | G119: 205 | H119: 1304
A120: 金谷镇 | B120: 李*发 | C120: 本人 | D120: 1 | E120: 分散全自理 | F120: 1099 | G120: 205 | H120: 1304 | I120: 202006
A121: 金谷镇 | B121: 郑*溪 | C121: 本人 | D121: 1 | E121: 分散全自理 | F121: 1099 | G121: 205 | H121: 1304 | I121: 202202
A122: 金谷镇 | B122: 吴*婷 | C122: 本人 | D122: 1 | E122: 分散全护理 | F122: 1099 | G122: 1023 | H122: 2122 | I122: 202208
A123: 金谷镇 | B123: 谢*川 | C123: 本人 | D123: 1 | E123: 分散全护理 | F123: 1099 | G123: 1023 | H123: 2122 | I123: 202208
A124: 金谷镇 | B124: 李*标 | C124: 本人 | D124: 1 | E124: 分散全自理 | F124: 1099 | G124: 205 | H124: 1304 | I124: 202401
A125: 金谷镇 | B125: 陈*圳 | C125: 本人 | D125: 1 | E125: 分散全自理 | F125: 1099 | G125: 205 | H125: 1304 | I125: 202408
A126: 金谷镇 | B126: 蔡*太 | C126: 本人 | D126: 1 | E126: 分散全自理 | F126: 1099 | G126: 205 | H126: 1304 | I126: 202502
A127: 金谷镇 | B127: 吴*城 | C127: 本人 | D127: 1 | E127: 分散全自理 | F127: 1099 | G127: 205 | H127: 1304 | I127: 202503
A128: 金谷镇 | B128: 陈*发 | C128: 本人 | D128: 1 | E128: 分散全自理 | F128: 1099 | G128: 205 | H128: 1304 | I128: 202507
A129: 金谷镇 | B129: 吴*火 | C129: 本人 | D129: 1 | E129: 分散全自理 | F129: 1099 | G129: 205 | H129: 1304 | I129: 202507
A130: 湖头镇 | B130: 苏*曾 | C130: 本人 | D130: 1 | E130: 分散全自理 | F130: 1099 | G130: 205 | H130: 1304
A131: 湖头镇 | B131: 陈*图 | C131: 本人 | D131: 1 | E131: 分散全自理 | F131: 1099 | G131: 205 | H131: 1304
A132: 湖头镇 | B132: 李*赐 | C132: 本人 | D132: 1 | E132: 分散全自理 | F132: 1099 | G132: 205 | H132: 1304
A133: 湖头镇 | B133: 李*茂 | C133: 本人 | D133: 1 | E133: 分散全自理 | F133: 1099 | G133: 205 | H133: 1304
A134: 湖头镇 | B134: 李*德 | C134: 本人 | D134: 1 | E134: 分散全自理 | F134: 1099 | G134: 205 | H134: 1304
A135: 湖头镇 | B135: 黄*香 | C135: 本人 | D135: 1 | E135: 分散全自理 | F135: 1099 | G135: 205 | H135: 1304
A136: 湖头镇 | B136: 李*雨 | C136: 本人 | D136: 1 | E136: 分散全自理 | F136: 1099 | G136: 205 | H136: 1304
A137: 湖头镇 | B137: 苏*撑 | C137: 本人 | D137: 1 | E137: 分散全自理 | F137: 1099 | G137: 205 | H137: 1304
A138: 湖头镇 | B138: 苏*山 | C138: 本人 | D138: 1 | E138: 分散全自理 | F138: 1099 | G138: 205 | H138: 1304
A139: 湖头镇 | B139: 李*路 | C139: 本人 | D139: 1 | E139: 分散全自理 | F139: 1099 | G139: 205 | H139: =F139+G139 -> 1304
A140: 湖头镇 | B140: 李*明 | C140: 本人 | D140: 1 | E140: 分散全自理 | F140: 1099 | G140: 205 | H140: 1304
A141: 湖头镇 | B141: 林*铜 | C141: 本人 | D141: 1 | E141: 分散全自理 | F141: 1099 | G141: 205 | H141: 1304
A142: 湖头镇 | B142: 许*田 | C142: 本人 | D142: 1 | E142: 分散全自理 | F142: 1099 | G142: 205 | H142: 1304
A143: 湖头镇 | B143: 许*水 | C143: 本人 | D143: 1 | E143: 分散全自理 | F143: 1099 | G143: 205 | H143: 1304
A144: 湖头镇 | B144: 李*金 | C144: 本人 | D144: 1 | E144: 分散全自理 | F144: 1099 | G144: 205 | H144: 1304 | I144: 201801
A145: 湖头镇 | B145: 林*太 | C145: 本人 | D145: 1 | E145: 分散全自理 | F145: 1099 | G145: 205 | H145: 1304 | I145: 201902
A146: 湖头镇 | B146: 李*明 | C146: 本人 | D146: 1 | E146: 分散全自理 | F146: 1099 | G146: 205 | H146: 1304 | I146: 202002
A147: 湖头镇 | B147: 李*水 | C147: 本人 | D147: 1 | E147: 分散全自理 | F147: 1099 | G147: 205 | H147: 1304 | I147: 202002
A148: 湖头镇 | B148: 陈*兰 | C148: 本人 | D148: 1 | E148: 分散全自理 | F148: 1099 | G148: 205 | H148: 1304 | I148: 202010
A149: 湖头镇 | B149: 许* | C149: 本人 | D149: 1 | E149: 分散全自理 | F149: 1099 | G149: 205 | H149: 1304 | I149: 202103
A150: 湖头镇 | B150: 苏*治 | C150: 本人 | D150: 1 | E150: 分散全自理 | F150: 1099 | G150: 205 | H150: 1304 | I150: 202103
A151: 湖头镇 | B151: 林*启 | C151: 本人 | D151: 1 | E151: 分散全自理 | F151: 1099 | G151: 205 | H151: 1304 | I151: 202103
A152: 湖头镇 | B152: 傅*全 | C152: 本人 | D152: 1 | E152: 分散全自理 | F152: 1099 | G152: 205 | H152: 1304 | I152: 202103
A153: 湖头镇 | B153: 王*平 | C153: 本人 | D153: 1 | E153: 分散全自理 | F153: 1099 | G153: 205 | H153: 1304 | I153: 202206
A154: 湖头镇 | B154: 王*萍 | C154: 本人 | D154: 1 | E154: 分散半护理 | F154: 1099 | G154: 511 | H154: 1610 | I154: 202206
A155: 湖头镇 | B155: 李*全 | C155: 本人 | D155: 1 | E155: 分散全自理 | F155: 1099 | G155: 205 | H155: 1304 | I155: 202207
A156: 湖头镇 | B156: 苏*忍 | C156: 本人 | D156: 1 | E156: 分散全自理 | F156: 1099 | G156: 205 | H156: 1304 | I156: 202209
A157: 湖头镇 | B157: 陈*强 | C157: 本人 | D157: 1 | E157: 分散全自理 | F157: 1099 | G157: 205 | H157: 1304 | I157: 202210
A158: 湖头镇 | B158: 李*昆 | C158: 本人 | D158: 1 | E158: 分散全自理 | F158: 1099 | G158: 205 | H158: 1304 | I158: 202306
A159: 湖头镇 | B159: 黄*尊 | C159: 本人 | D159: 1 | E159: 分散全自理 | F159: 1099 | G159: 205 | H159: 1304 | I159: 202309
A160: 湖头镇 | B160: 林*景 | C160: 本人 | D160: 1 | E160: 分散全自理 | F160: 1099 | G160: 205 | H160: 1304 | I160: 202311
A161: 湖头镇 | B161: 陈*北 | C161: 本人 | D161: 1 | E161: 分散全自理 | F161: 1099 | G161: 205 | H161: 1304 | I161: 202401
A162: 湖头镇 | B162: 李*金 | C162: 本人 | D162: 1 | E162: 分散全自理 | F162: 1099 | G162: 205 | H162: 1304 | I162: 202401
A163: 湖头镇 | B163: 李*清 | C163: 本人 | D163: 1 | E163: 分散全自理 | F163: 1099 | G163: 205 | H163: 1304 | I163: 202407
A164: 湖头镇 | B164: 许*丁 | C164: 本人 | D164: 1 | E164: 分散全自理 | F164: 1099 | G164: 205 | H164: 1304 | I164: 202412
A165: 湖头镇 | B165: 陈*国 | C165: 本人 | D165: 1 | E165: 分散全自理 | F165: 1099 | G165: 205 | H165: 1304 | I165: 202502
A166: 湖头镇 | B166: 吴*恭 | C166: 本人 | D166: 1 | E166: 分散全自理 | F166: 1099 | G166: 205 | H166: 1304 | I166: 202503
A167: 湖头镇 | B167: 颜*胜 | C167: 本人 | D167: 1 | E167: 分散全自理 | F167: 1099 | G167: 205 | H167: 1304 | I167: 202505
A168: 湖头镇 | B168: 陈* | C168: 本人 | D168: 1 | E168: 分散全自理 | F168: 1099 | G168: 205 | H168: 1304 | I168: 202505
A169: 湖头镇 | B169: 苏*金 | C169: 本人 | D169: 1 | E169: 分散全自理 | F169: 1099 | G169: 205 | H169: 1304 | I169: 202506
A170: 湖头镇 | B170: 苏*国 | C170: 本人 | D170: 1 | E170: 分散全自理 | F170: 1099 | G170: 205 | H170: 1304 | I170: 202506
A171: 湖头镇 | B171: 李*城 | C171: 本人 | D171: 1 | E171: 分散全自理 | F171: 1099 | G171: 205 | H171: 1304 | I171: 202507
A172: 湖头镇 | B172: 苏*林 | C172: 本人 | D172: 1 | E172: 分散全自理 | F172: 1099 | G172: 205 | H172: 1304 | I172: 202508
A173: 湖头镇 | B173: 柯*溪 | C173: 本人 | D173: 1 | E173: 分散全自理 | F173: 1099 | G173: 205 | H173: 1304 | I173: 202510
A174: 湖头镇 | B174: 郑* | C174: 本人 | D174: 1 | E174: 分散全自理 | F174: 1099 | G174: 205 | H174: 1304 | I174: 202510
A175: 湖头镇 | B175: 叶* | C175: 本人 | D175: 1 | E175: 分散全自理 | F175: 1099 | G175: 205 | H175: 1304 | I175: 202510
A176: 湖头镇 | B176: 李*林 | C176: 本人 | D176: 1 | E176: 分散全自理 | F176: 1099 | G176: 205 | H176: 1304 | I176: 202510
A177: 湖头镇 | B177: 吴*溪 | C177: 本人 | D177: 1 | E177: 分散全自理 | F177: 1099 | G177: 205 | H177: 1304 | I177: 202510
A178: 湖上乡 | B178: 苏*山 | C178: 本人 | D178: 1 | E178: 分散全自理 | F178: 1099 | G178: 205 | H178: 1304
A179: 湖上乡 | B179: 苏*清 | C179: 本人 | D179: 1 | E179: 分散全自理 | F179: 1099 | G179: 205 | H179: 1304 | I179: 202407
A180: 湖上乡 | B180: 钟*附 | C180: 本人 | D180: 1 | E180: 分散全自理 | F180: 1099 | G180: 205 | H180: 1304 | I180: 202510
A181: 白濑乡 | B181: 陈*成 | C181: 本人 | D181: 1 | E181: 分散全自理 | F181: 1099 | G181: 205 | H181: 1304
A182: 白濑乡 | B182: 陈* | C182: 本人 | D182: 1 | E182: 分散全自理 | F182: 1099 | G182: 205 | H182: 1304
A183: 白濑乡 | B183: 陈* | C183: 本人 | D183: 1 | E183: 分散全自理 | F183: 1099 | G183: 205 | H183: 1304 | I183: 201807
A184: 白濑乡 | B184: 陈*清 | C184: 本人 | D184: 1 | E184: 分散全自理 | F184: 1099 | G184: 205 | H184: 1304 | I184: 202002
A185: 白濑乡 | B185: 张*生 | C185: 本人 | D185: 1 | E185: 分散全自理 | F185: 1099 | G185: 205 | H185: 1304 | I185: 202002
A186: 白濑乡 | B186: 陈* | C186: 本人 | D186: 1 | E186: 分散全自理 | F186: 1099 | G186: 205 | H186: 1304 | I186: 202204
A187: 白濑乡 | B187: 董*源 | C187: 本人 | D187: 1 | E187: 分散全自理 | F187: 1099 | G187: 205 | H187: 1304 | I187: 202204
A188: 白濑乡 | B188: 陈*火 | C188: 本人 | D188: 1 | E188: 分散全自理 | F188: 1099 | G188: 205 | H188: 1304 | I188: 202104
A189: 白濑乡 | B189: 许*朝 | C189: 本人 | D189: 1 | E189: 分散全护理 | F189: 1099 | G189: 1023 | H189: 2122 | I189: 202407
A190: 剑斗镇 | B190: 王*福 | C190: 本人 | D190: 1 | E190: 分散全自理 | F190: 1099 | G190: 205 | H190: 1304
A191: 剑斗镇 | B191: 王*兴 | C191: 本人 | D191: 1 | E191: 分散全自理 | F191: 1099 | G191: 205 | H191: 1304
A192: 剑斗镇 | B192: 王*挺 | C192: 本人 | D192: 1 | E192: 分散全自理 | F192: 1099 | G192: 205 | H192: 1304
A193: 剑斗镇 | B193: 林*复 | C193: 本人 | D193: 1 | E193: 分散全自理 | F193: 1099 | G193: 205 | H193: 1304
A194: 剑斗镇 | B194: 吴*丁 | C194: 本人 | D194: 1 | E194: 分散全自理 | F194: 1099 | G194: 205 | H194: 1304
A195: 剑斗镇 | B195: 王*县 | C195: 本人 | D195: 1 | E195: 分散全自理 | F195: 1099 | G195: 205 | H195: 1304
A196: 剑斗镇 | B196: 王*根 | C196: 本人 | D196: 1 | E196: 分散全自理 | F196: 1099 | G196: 205 | H196: 1304
A197: 剑斗镇 | B197: 苏*生 | C197: 本人 | D197: 1 | E197: 分散全自理 | F197: 1099 | G197: 205 | H197: 1304 | I197: 201905
A198: 剑斗镇 | B198: 王*成 | C198: 本人 | D198: 1 | E198: 分散全自理 | F198: 1099 | G198: 205 | H198: 1304 | I198: 202206
A199: 剑斗镇 | B199: 吴*平 | C199: 本人 | D199: 1 | E199: 分散全自理 | F199: 1099 | G199: 205 | H199: 1304 | I199: 202210
A200: 感德镇 | B200: 苏* | C200: 本人 | D200: 1 | E200: 分散全自理 | F200: 1099 | G200: 205 | H200: 1304
... 329 more rows

Sheet 农村集中特困
A1: 全县2025年10月份农村特困人员集中供养名册
A2: 编制单位：安溪县民政局
A3: 乡镇 | B3: 户主姓名 | C3: 与本人关系 | D3: 保障 人数 | E3: 特困类别 | F3: 基本生活标准 | G3: 照料护理标准 | H3: 供养金额 | I3: 供养机构 | J3: 起始保障年月
A4: 凤城镇 | B4: 陈*良 | C4: 本人 | D4: 1 | E4: 集中全自理 | F4: 1648 | G4: 307 | H4: =F4+G4 -> 1955 | I4: 安溪龙人伍心养老院 | J4: 202203
A5: 凤城镇 | B5: 黄*定 | C5: 本人 | D5: 1 | E5: 集中全自理 | F5: 1648 | G5: 307 | H5: 1955 | I5: 安溪龙人伍心养老院 | J5: 202203
A6: 城厢镇 | B6: 谢*昌 | C6: 本人 | D6: 1 | E6: 集中全护理 | F6: 1648 | G6: 1534 | H6: 3182 | I6: 安溪县第三医院 | J6: 201909
A7: 城厢镇 | B7: 许*返 | C7: 本人 | D7: 1 | E7: 集中半护理 | F7: 1648 | G7: 767 | H7: 2415 | I7: 安溪县乐康医院 | J7: 202104
A8: 城厢镇 | B8: 谢*安 | C8: 本人 | D8: 1 | E8: 集中全护理 | F8: 1648 | G8: 1534 | H8: 3182 | I8: 蓬莱敬老院 | J8: 202112
A9: 城厢镇 | B9: 谢*生 | C9: 本人 | D9: 1 | E9: 集中全护理 | F9: 1648 | G9: 1534 | H9: 3182 | I9: 安溪县乐康医院 | J9: 202208
A10: 城厢镇 | B10: 李*州 | C10: 本人 | D10: 1 | E10: 集中全护理 | F10: 1648 | G10: 1534 | H10: 3182 | I10: 安溪龙人伍心养老院 | J10: 202303
A11: 城厢镇 | B11: 陈*兰 | C11: 本人 | D11: 1 | E11: 集中全护理 | F11: 1648 | G11: 1534 | H11: 3182 | I11: 安溪龙人伍心养老院 | J11: 202310
A12: 城厢镇 | B12: 谢*红 | C12: 本人 | D12: 1 | E12: 集中全护理 | F12: 1648 | G12: 1534 | H12: 3182 | I12: 安溪龙人伍心养老院 | J12: 202506
A13: 城厢镇 | B13: 谢*玲 | C13: 本人 | D13: 1 | E13: 集中全护理 | F13: 1648 | G13: 1534 | H13: 3182 | I13: 安溪龙人伍心养老院 | J13: 202508
A14: 参内镇 | B14: 黄*石 | C14: 本人 | D14: 1 | E14: 集中全护理 | F14: 1648 | G14: 1534 | H14: =F14+G14 -> 3182 | I14: 安溪县第三医院 | J14: 202104
A15: 参内镇 | B15: 黄*安 | C15: 本人 | D15: 1 | E15: 集中半护理 | F15: 1648 | G15: 767 | H15: 2415 | I15: 安溪龙人伍心养老院 | J15: 202201
A16: 参内镇 | B16: 黄*顺 | C16: 本人 | D16: 1 | E16: 集中全自理 | F16: 1648 | G16: 307 | H16: 1955 | I16: 安溪龙人伍心养老院 | J16: 202309
A17: 参内镇 | B17: 郑*桂 | C17: 本人 | D17: 1 | E17: 集中全护理 | F17: 1648 | G17: 1534 | H17: 3182 | I17: 安溪龙人伍心养老院 | J17: 202409
A18: 参内镇 | B18: 黄*固 | C18: 本人 | D18: 1 | E18: 集中全护理 | F18: 1648 | G18: 1534 | H18: 3182 | I18: 安溪县第三医院 | J18: 202411
A19: 蓬莱镇 | B19: 林* | C19: 本人 | D19: 1 | E19: 集中半护理 | F19: 1648 | G19: 767 | H19: 2415 | I19: 蓬莱敬老院 | J19: 201811
A20: 蓬莱镇 | B20: 柯*圳 | C20: 本人 | D20: 1 | E20: 集中全护理 | F20: 1648 | G20: 1534 | H20: 3182 | I20: 安溪县第三医院 | J20: 201912
A21: 蓬莱镇 | B21: 蔡*斗 | C21: 本人 | D21: 1 | E21: 集中半护理 | F21: 1648 | G21: 767 | H21: =F21+G21 -> 2415 | I21: 安溪县乐康医院 | J21: 201811
A22: 蓬莱镇 | B22: 蔡*辉 | C22: 本人 | D22: 1 | E22: 集中半护理 | F22: 1648 | G22: 767 | H22: 2415 | I22: 蓬莱敬老院 | J22: 202109
A23: 蓬莱镇 | B23: 林*吹 | C23: 本人 | D23: 1 | E23: 集中半护理 | F23: 1648 | G23: 767 | H23: 2415 | I23: 蓬莱敬老院 | J23: 202402
A24: 蓬莱镇 | B24: 刘*治 | C24: 本人 | D24: 1 | E24: 集中全护理 | F24: 1648 | G24: 1534 | H24: 3182 | I24: 安溪县第三医院 | J24: 202504
A25: 蓬莱镇 | B25: 柯*福 | C25: 本人 | D25: 1 | E25: 集中半护理 | F25: 1648 | G25: 767 | H25: 2415 | I25: 蓬莱敬老院 | J25: 202507
A26: 蓬莱镇 | B26: 黄*根 | C26: 本人 | D26: 1 | E26: 集中半护理 | F26: 1648 | G26: 767 | H26: 2415 | I26: 安溪龙人伍心养老院 | J26: 202509
A27: 魁斗镇 | B27: 王*元 | C27: 本人 | D27: 1 | E27: 集中半护理 | F27: 1648 | G27: 1534 | H27: =F27+G27 -> 3182 | I27: 魁斗敬老院 | J27: 201906
A28: 魁斗镇 | B28: 郭*良 | C28: 本人 | D28: 1 | E28: 集中全自理 | F28: 1648 | G28: 307 | H28: 1955 | I28: 魁斗敬老院 | J28: 201906
A29: 魁斗镇 | B29: 陈*耐 | C29: 本人 | D29: 1 | E29: 集中全护理 | F29: 1648 | G29: 1534 | H29: 3182 | I29: 魁斗敬老院 | J29: 202109
A30: 魁斗镇 | B30: 易*成 | C30: 本人 | D30: 1 | E30: 集中全护理 | F30: 1648 | G30: 1534 | H30: 3182 | I30: 安溪县第三医院 | J30: 202207
A31: 魁斗镇 | B31: 陈*陆 | C31: 本人 | D31: 1 | E31: 集中全护理 | F31: 1648 | G31: 1534 | H31: 3182 | I31: 安溪县乐康医院 | J31: 202308
A32: 魁斗镇 | B32: 杨*知 | C32: 本人 | D32: 1 | E32: 集中全护理 | F32: 1648 | G32: 1534 | H32: 3182 | I32: 安溪县第三医院 | J32: 202407
A33: 魁斗镇 | B33: 林*生 | C33: 本人 | D33: 1 | E33: 集中全护理 | F33: 1648 | G33: 1534 | H33: 3182 | I33: 魁斗敬老院 | J33: 202504
A34: 湖头镇 | B34: 李*盛 | C34: 本人 | D34: 1 | E34: 集中全护理 | F34: 1648 | G34: 1534 | H34: 3182 | I34: 安溪县第三医院 | J34: 201911
A35: 湖头镇 | B35: 陈*月 | C35: 本人 | D35: 1 | E35: 集中全护理 | F35: 1648 | G35: 1534 | H35: 3182 | I35: 安溪县第三医院 | J35: 201912
A36: 湖头镇 | B36: 李*明 | C36: 本人 | D36: 1 | E36: 集中全护理 | F36: 1648 | G36: 1534 | H36: 3182 | I36: 湖头敬老院 | J36: 202006
A37: 湖头镇 | B37: 郑* | C37: 本人 | D37: 1 | E37: 集中全护理 | F37: 1648 | G37: 1534 | H37: 3182 | I37: 湖头敬老院 | J37: 202012
A38: 湖头镇 | B38: 苏*潭 | C38: 本人 | D38: 1 | E38: 集中全护理 | F38: 1648 | G38: 1534 | H38: 3182 | I38: 安溪县乐康医院 | J38: 202012
A39: 湖头镇 | B39: 魏*转 | C39: 本人 | D39: 1 | E39: 集中全护理 | F39: 1648 | G39: 1534 | H39: 3182 | I39: 湖头敬老院 | J39: 202110
A40: 湖头镇 | B40: 苏*溪 | C40: 本人 | D40: 1 | E40: 集中全护理 | F40: 1648 | G40: 1534 | H40: =F40+G40 -> 3182 | I40: 安溪县乐康医院 | J40: 202211
A41: 湖头镇 | B41: 苏*城 | C41: 本人 | D41: 1 | E41: 集中全护理 | F41: 1648 | G41: 1534 | H41: 3182 | I41: 安溪县乐康医院 | J41: 202211
A42: 湖头镇 | B42: 许*展 | C42: 本人 | D42: 1 | E42: 集中全护理 | F42: 1648 | G42: 1534 | H42: 3182 | I42: 安溪县乐康医院 | J42: 202211
A43: 湖头镇 | B43: 李*花 | C43: 本人 | D43: 1 | E43: 集中全护理 | F43: 1648 | G43: 1534 | H43: 3182 | I43: 安溪县乐康医院 | J43: 202211
A44: 湖头镇 | B44: 李*燕 | C44: 本人 | D44: 1 | E44: 集中全护理 | F44: 1648 | G44: 1534 | H44: 3182 | I44: 湖头敬老院 | J44: 202211
A45: 湖头镇 | B45: 陈*石 | C45: 本人 | D45: 1 | E45: 集中全护理 | F45: 1648 | G45: 1534 | H45: 3182 | I45: 湖头敬老院 | J45: 202211
A46: 湖头镇 | B46: 李*斗 | C46: 本人 | D46: 1 | E46: 集中全护理 | F46: 1648 | G46: 1534 | H46: 3182 | I46: 湖头敬老院 | J46: 202303
A47: 湖头镇 | B47: 林*尚 | C47: 本人 | D47: 1 | E47: 集中全护理 | F47: 1648 | G47: 1534 | H47: 3182 | I47: 湖头敬老院 | J47: 202309
A48: 湖上乡 | B48: 陈*火 | C48: 本人 | D48: 1 | E48: 集中半护理 | F48: 1648 | G48: 767 | H48: 2415 | I48: 湖上敬老院 | J48: 201909
A49: 湖上乡 | B49: 苏*子 | C49: 本人 | D49: 1 | E49: 集中全护理 | F49: 1648 | G49: 1534 | H49: 3182 | I49: 湖上敬老院 | J49: 202103
A50: 湖上乡 | B50: 李*心 | C50: 本人 | D50: 1 | E50: 集中全护理 | F50: 1648 | G50: 1534 | H50: 3182 | I50: 湖上敬老院 | J50: 202312
A51: 白濑乡 | B51: 蔡*连 | C51: 本人 | D51: 1 | E51: 集中全护理 | F51: 1648 | G51: 1534 | H51: 3182 | I51: 湖头敬老院 | J51: 201811
A52: 白濑乡 | B52: 吴* | C52: 本人 | D52: 1 | E52: 集中全护理 | F52: 1648 | G52: 1534 | H52: 3182 | I52: 湖头敬老院 | J52: 201811
A53: 白濑乡 | B53: 陈*成 | C53: 本人 | D53: 1 | E53: 集中全护理 | F53: 1648 | G53: 1534 | H53: 3182 | I53: 湖头敬老院 | J53: 201811
A54: 白濑乡 | B54: 苏*康 | C54: 本人 | D54: 1 | E54: 集中全自理 | F54: 1648 | G54: 307 | H54: 1955 | I54: 安溪县乐康医院 | J54: 201811
A55: 白濑乡 | B55: 柯*发 | C55: 本人 | D55: 1 | E55: 集中全护理 | F55: 1648 | G55: 1534 | H55: 3182 | I55: 蓬莱敬老院 | J55: 202109
A56: 剑斗镇 | B56: 王*清 | C56: 本人 | D56: 1 | E56: 集中全护理 | F56: 1648 | G56: 1534 | H56: 3182 | I56: 安溪县第三医院 | J56: 202011
A57: 剑斗镇 | B57: 王* | C57: 本人 | D57: 1 | E57: 集中全护理 | F57: 1648 | G57: 1534 | H57: 3182 | I57: 安溪龙人伍心养老院 | J57: 202012
A58: 剑斗镇 | B58: 王*生 | C58: 本人 | D58: 1 | E58: 集中全护理 | F58: 1648 | G58: 1534 | H58: 3182 | I58: 安溪龙人伍心养老院 | J58: 202309
A59: 剑斗镇 | B59: 吴*情 | C59: 本人 | D59: 1 | E59: 集中全护理 | F59: 1648 | G59: 1534 | H59: 3182 | I59: 湖头敬老院 | J59: 202403
A60: 感德镇 | B60: 苏* | C60: 本人 | D60: 1 | E60: 集中全护理 | F60: 1648 | G60: 1534 | H60: 3182 | I60: 感德敬老院 | J60: 202007
A61: 感德镇 | B61: 杨*峰 | C61: 本人 | D61: 1 | E61: 集中半护理 | F61: 1648 | G61: 767 | H61: 2415 | I61: 安溪县乐康医院 | J61: 202009
A62: 感德镇 | B62: 吴*盛 | C62: 本人 | D62: 1 | E62: 集中全护理 | F62: 1648 | G62: 1534 | H62: 3182 | I62: 安溪县第三医院 | J62: 202205
A63: 感德镇 | B63: 吴*安 | C63: 本人 | D63: 1 | E63: 集中半护理 | F63: 1648 | G63: 767 | H63: 2415 | I63: 安溪县乐康医院 | J63: 202207
A64: 感德镇 | B64: 吴*潘 | C64: 本人 | D64: 1 | E64: 集中半护理 | F64: 1648 | G64: 767 | H64: 2415 | I64: 安溪县乐康医院 | J64: 202207
A65: 感德镇 | B65: 李*南 | C65: 本人 | D65: 1 | E65: 集中半护理 | F65: 1648 | G65: 767 | H65: 2415 | I65: 安溪县乐康医院 | J65: 202209
A66: 感德镇 | B66: 吴*仕 | C66: 本人 | D66: 1 | E66: 集中半护理 | F66: 1648 | G66: 767 | H66: 2415 | I66: 安溪县乐康医院 | J66: 202209
A67: 感德镇 | B67: 龚*枝 | C67: 本人 | D67: 1 | E67: 集中半护理 | F67: 1648 | G67: 767 | H67: 2415 | I67: 安溪县乐康医院 | J67: 202210
A68: 感德镇 | B68: 陈*贵 | C68: 本人 | D68: 1 | E68: 集中全护理 | F68: 1648 | G68: 1534 | H68: 3182 | I68: 安溪县乐康医院 | J68: 202410
A69: 感德镇 | B69: 王*子 | C69: 本人 | D69: 1 | E69: 集中全护理 | F69: 1648 | G69: 1534 | H69: 3182 | I69: 安溪龙人伍心养老院 | J69: 202503
A70: 感德镇 | B70: 吴*珍 | C70: 本人 | D70: 1 | E70: 集中全护理 | F70: 1648 | G70: 1534 | H70: 3182 | I70: 安溪县第三医院 | J70: 202504
A71: 感德镇 | B71: 上*吉 | C71: 本人 | D71: 1 | E71: 集中全自理 | F71: 1648 | G71: 307 | H71: 1955 | I71: 安溪县乐康医院 | J71: 202506
A72: 桃舟乡 | B72: 张*木 | C72: 本人 | D72: 1 | E72: 集中全护理 | F72: 1648 | G72: 1534 | H72: =F72+G72 -> 3182 | I72: 蓬莱敬老院 | J72: 201910
A73: 福田乡 | B73: 陈*强 | C73: 本人 | D73: 1 | E73: 集中全护理 | F73: 1648 | G73: 1534 | H73: 3182 | I73: 安溪县第三医院 | J73: 202010
A74: 福田乡 | B74: 陈*竹 | C74: 本人 | D74: 1 | E74: 集中全自理 | F74: 1648 | G74: 307 | H74: 1955 | I74: 安溪龙人伍心养老院 | J74: 202309
A75: 福田乡 | B75: 陈*顺 | C75: 本人 | D75: 1 | E75: 集中全护理 | F75: 1648 | G75: 1534 | H75: 3182 | I75: 安溪县第三医院 | J75: 202507
A76: 福田乡 | B76: 陈*璋 | C76: 本人 | D76: 1 | E76: 集中全护理 | F76: 1648 | G76: 1534 | H76: 3182 | I76: 安溪县第三医院 | J76: 202507
A77: 福田乡 | B77: 陈*国 | C77: 本人 | D77: 1 | E77: 集中全护理 | F77: 1648 | G77: 1534 | H77: 3182 | I77: 安溪县第三医院 | J77: 202508
A78: 长卿镇 | B78: 陈*安 | C78: 本人 | D78: 1 | E78: 集中全护理 | F78: 1648 | G78: 1534 | H78: 3182 | I78: 安溪县乐康医院 | J78: 202009
A79: 长卿镇 | B79: 吴*木 | C79: 本人 | D79: 1 | E79: 集中全护理 | F79: 1648 | G79: 1534 | H79: 3182 | I79: 安溪县第三医院 | J79: 202012
A80: 长卿镇 | B80: 谢*生 | C80: 本人 | D80: 1 | E80: 集中全护理 | F80: 1648 | G80: 1534 | H80: 3182 | I80: 安溪龙人伍心养老院 | J80: 200601
A81: 长卿镇 | B81: 吕*弟 | C81: 本人 | D81: 1 | E81: 集中全护理 | F81: 1648 | G81: 1534 | H81: =F81+G81 -> 3182 | I81: 安溪龙人伍心养老院 | J81: 202210
A82: 长卿镇 | B82: 胡* | C82: 本人 | D82: 1 | E82: 集中半护理 | F82: 1648 | G82: 767 | H82: 2415 | I82: 安溪龙人伍心养老院 | J82: 202309
A83: 长卿镇 | B83: 苏*丁 | C83: 本人 | D83: 1 | E83: 集中全护理 | F83: 1648 | G83: 1534 | H83: 3182 | I83: 安溪龙人伍心养老院 | J83: 202404
A84: 长卿镇 | B84: 陈*云 | C84: 本人 | D84: 1 | E84: 集中全护理 | F84: 1648 | G84: 1534 | H84: 3182 | I84: 蓬莱敬老院 | J84: 202504
A85: 长卿镇 | B85: 王*出 | C85: 本人 | D85: 1 | E85: 集中全护理 | F85: 1648 | G85: 1534 | H85: 3182 | I85: 安溪龙人伍心养老院
A86: 长卿镇 | B86: 王*富 | C86: 本人 | D86: 1 | E86: 集中全护理 | F86: 1648 | G86: 1534 | H86: 3182 | I86: 安溪龙人伍心养老院 | J86: 202507
A87: 祥华乡 | B87: 詹*福 | C87: 本人 | D87: 1 | E87: 集中全护理 | F87: 1648 | G87: 1534 | H87: 3182 | I87: 安溪县第三医院 | J87: 202007
A88: 祥华乡 | B88: 上*文兴 | C88: 本人 | D88: 1 | E88: 集中全护理 | F88: 1648 | G88: 1534 | H88: 3182 | I88: 安溪县第三医院 | J88: 202007
A89: 祥华乡 | B89: 詹*财 | C89: 本人 | D89: 1 | E89: 集中全护理 | F89: 1648 | G89: 1534 | H89: 3182 | I89: 安溪县乐康医院 | J89: 202011
A90: 祥华乡 | B90: 吴*榴 | C90: 本人 | D90: 1 | E90: 集中全护理 | F90: 1648 | G90: 1534 | H90: 3182 | I90: 湖头敬老院 | J90: 202011
A91: 祥华乡 | B91: 上*振成 | C91: 本人 | D91: 1 | E91: 集中全护理 | F91: 1648 | G91: 1534 | H91: 3182 | I91: 安溪龙人伍心养老院 | J91: 202309
A92: 官桥镇 | B92: 钟*东 | C92: 本人 | D92: 1 | E92: 集中全护理 | F92: 1648 | G92: 1534 | H92: 3182 | I92: 安溪县第三医院 | J92: 201912
A93: 官桥镇 | B93: 林*法 | C93: 本人 | D93: 1 | E93: 集中全护理 | F93: 1648 | G93: 1534 | H93: 3182 | I93: 安溪龙人伍心养老院 | J93: 202204
A94: 官桥镇 | B94: 陈*文 | C94: 本人 | D94: 1 | E94: 集中全护理 | F94: 1648 | G94: 1534 | H94: 3182 | I94: 安溪县第三医院 | J94: 202211
A95: 官桥镇 | B95: 林*卿 | C95: 本人 | D95: 1 | E95: 集中全护理 | F95: 1648 | G95: 1534 | H95: 3182 | I95: 安溪龙人伍心养老院 | J95: 202402
A96: 官桥镇 | B96: 钟*木 | C96: 本人 | D96: 1 | E96: 集中全护理 | F96: 1648 | G96: 1534 | H96: 3182 | I96: 安溪龙人伍心养老院 | J96: 202507
A97: 官桥镇 | B97: 钟*添 | C97: 本人 | D97: 1 | E97: 集中半护理 | F97: 1648 | G97: 767 | H97: 2415 | I97: 安溪龙人伍心养老院 | J97: 202507
A98: 龙门镇 | B98: 许*霞 | C98: 本人 | D98: 1 | E98: 集中全护理 | F98: 1648 | G98: 1534 | H98: =F98+G98 -> 3182 | I98: 安溪县第三医院 | J98: 201912
A99: 龙门镇 | B99: 陈*富 | C99: 本人 | D99: 1 | E99: 集中全护理 | F99: 1648 | G99: 1534 | H99: 3182 | I99: 魁斗敬老院 | J99: 202101
A100: 龙门镇 | B100: 沈* | C100: 本人 | D100: 1 | E100: 集中全护理 | F100: 1648 | G100: 1534 | H100: 3182 | I100: 虎邱敬老院 | J100: 202103
A101: 龙门镇 | B101: 林*泉 | C101: 本人 | D101: 1 | E101: 集中全护理 | F101: 1648 | G101: 1534 | H101: 3182 | I101: 安溪县第三医院 | J101: 202106
A102: 龙门镇 | B102: 陈*杰 | C102: 本人 | D102: 1 | E102: 集中全护理 | F102: 1648 | G102: 1534 | H102: 3182 | I102: 安溪龙人伍心养老院 | J102: 202307
A103: 龙门镇 | B103: 翁*锋 | C103: 本人 | D103: 1 | E103: 集中全护理 | F103: 1648 | G103: 1534 | H103: 3182 | I103: 虎邱敬老院 | J103: 202309
A104: 龙门镇 | B104: 施*环 | C104: 本人 | D104: 1 | E104: 集中全护理 | F104: 1648 | G104: 1534 | H104: 3182 | I104: 安溪龙人伍心养老院 | J104: 202401
A105: 龙门镇 | B105: 陈*居 | C105: 本人 | D105: 1 | E105: 集中全护理 | F105: 1648 | G105: 1534 | H105: 3182 | I105: 蓬莱敬老院 | J105: 202401
A106: 龙门镇 | B106: 白*国 | C106: 本人 | D106: 1 | E106: 集中全护理 | F106: 1648 | G106: 1534 | H106: 3182 | I106: 虎邱敬老院 | J106: 202406
A107: 虎邱镇 | B107: 詹*花 | C107: 本人 | D107: 1 | E107: 集中半护理 | F107: 1648 | G107: 767 | H107: 2415 | I107: 虎邱敬老院 | J107: 201907
A108: 虎邱镇 | B108: 林*菊 | C108: 本人 | D108: 1 | E108: 集中全护理 | F108: 1648 | G108: 1534 | H108: 3182 | I108: 虎邱敬老院 | J108: 202009
A109: 虎邱镇 | B109: 周*国 | C109: 本人 | D109: 1 | E109: 集中半护理 | F109: 1648 | G109: 767 | H109: =F109+G109 -> 2415 | I109: 虎邱敬老院 | J109: 202103
A110: 虎邱镇 | B110: 林*福 | C110: 本人 | D110: 1 | E110: 集中半护理 | F110: 1648 | G110: 767 | H110: 2415 | I110: 虎邱敬老院 | J110: 202105
A111: 虎邱镇 | B111: 高*坚 | C111: 本人 | D111: 1 | E111: 集中全护理 | F111: 1648 | G111: 1534 | H111: 3182 | I111: 蓬莱敬老院 | J111: 202308
A112: 虎邱镇 | B112: 林*缘 | C112: 本人 | D112: 1 | E112: 集中半护理 | F112: 1648 | G112: 767 | H112: 2415 | I112: 安溪龙人伍心养老院 | J112: 202308
A113: 虎邱镇 | B113: 林*赐 | C113: 本人 | D113: 1 | E113: 集中全护理 | F113: 1648 | G113: 1534 | H113: 3182 | I113: 安溪龙人伍心养老院 | J113: 202310
A114: 虎邱镇 | B114: 林*英 | C114: 本人 | D114: 1 | E114: 集中全护理 | F114: 1648 | G114: 1534 | H114: 3182 | I114: 虎邱敬老院 | J114: 202507
A115: 西坪镇 | B115: 王*法 | C115: 本人 | D115: 1 | E115: 集中全护理 | F115: 1648 | G115: 1534 | H115: 3182 | I115: 西坪敬老院 | J115: 201909
A116: 西坪镇 | B116: 林*美 | C116: 本人 | D116: 1 | E116: 集中全护理 | F116: 1648 | G116: 1534 | H116: 3182 | I116: 安溪县第三医院 | J116: 201911
A117: 西坪镇 | B117: 王*滨 | C117: 本人 | D117: 1 | E117: 集中全护理 | F117: 1648 | G117: 1534 | H117: 3182 | I117: 安溪县第三医院 | J117: 201912
A118: 西坪镇 | B118: 林*心 | C118: 本人 | D118: 1 | E118: 集中全护理 | F118: 1648 | G118: 1534 | H118: 3182 | I118: 安溪县第三医院 | J118: 202008
A119: 西坪镇 | B119: 王*夏 | C119: 本人 | D119: 1 | E119: 集中全护理 | F119: 1648 | G119: 1534 | H119: 3182 | I119: 蓬莱敬老院 | J119: 202206
A120: 西坪镇 | B120: 王*添 | C120: 本人 | D120: 1 | E120: 集中全护理 | F120: 1648 | G120: 1534 | H120: =F120+G120 -> 3182 | I120: 安溪龙人伍心养老院 | J120: 202207
A121: 西坪镇 | B121: 王*贤 | C121: 本人 | D121: 1 | E121: 集中全护理 | F121: 1648 | G121: 1534 | H121: 3182 | I121: 安溪县第三医院 | J121: 202209
A122: 西坪镇 | B122: 王*花 | C122: 本人 | D122: 1 | E122: 集中全护理 | F122: 1648 | G122: 1534 | H122: 3182 | I122: 西坪敬老院 | J122: 202402
A123: 西坪镇 | B123: 杨*宗 | C123: 本人 | D123: 1 | E123: 集中全护理 | F123: 1648 | G123: 1534 | H123: 3182 | I123: 安溪县第三医院 | J123: 202502
A124: 西坪镇 | B124: 王*玉 | C124: 本人 | D124: 1 | E124: 集中全护理 | F124: 1648 | G124: 1534 | H124: 3182 | I124: 西坪敬老院 | J124: 202504
A125: 西坪镇 | B125: 王*川 | C125: 本人 | D125: 1 | E125: 集中全护理 | F125: 1648 | G125: 1534 | H125: 3182 | I125: 安溪龙人伍心养老院 | J125: 202509
A126: 尚卿乡 | B126: 朱*林 | C126: 本人 | D126: 1 | E126: 集中全护理 | F126: 1648 | G126: 1534 | H126: =F126+G126 -> 3182 | I126: 安溪龙人伍心养老院
A127: 尚卿乡 | B127: 廖*来 | C127: 本人 | D127: 1 | E127: 集中全护理 | F127: 1648 | G127: 1534 | H127: 3182 | I127: 西坪敬老院 | J127: 202312
A128: 尚卿乡 | B128: 余*兴 | C128: 本人 | D128: 1 | E128: 集中全护理 | F128: 1648 | G128: 1534 | H128: 3182 | I128: 安溪县第三医院 | J128: 202505
A129: 芦田镇 | B129: 杨*旺 | C129: 本人 | D129: 1 | E129: 集中全护理 | F129: 1648 | G129: 1534 | H129: 3182 | I129: 安溪县第三医院 | J129: 201912
A130: 芦田镇 | B130: 陈*来 | C130: 本人 | D130: 1 | E130: 集中全护理 | F130: 1648 | G130: 1534 | H130: 3182 | I130: 西坪敬老院 | J130: 202310
A131: 芦田镇 | B131: 杨*兴 | C131: 本人 | D131: 1 | E131: 集中全护理 | F131: 1648 | G131: 1534 | H131: 3182 | I131: 安溪县第三医院 | J131: 202405
A132: 龙涓乡 | B132: 李*水 | C132: 本人 | D132: 1 | E132: 集中全护理 | F132: 1648 | G132: 1534 | H132: 3182 | I132: 龙涓敬老院 | J132: 201904
A133: 龙涓乡 | B133: 刘*水 | C133: 本人 | D133: 1 | E133: 集中全护理 | F133: 1648 | G133: 1534 | H133: 3182 | I133: 安溪县第三医院 | J133: 201909
A134: 龙涓乡 | B134: 李*建 | C134: 本人 | D134: 1 | E134: 集中全护理 | F134: 1648 | G134: 1534 | H134: 3182 | I134: 安溪龙人伍心养老院 | J134: 202307
A135: 龙涓乡 | B135: 刘*木 | C135: 本人 | D135: 1 | E135: 集中全护理 | F135: 1648 | G135: 1534 | H135: 3182 | I135: 龙涓敬老院 | J135: 202407
A136: 大坪乡 | B136: 张*根 | C136: 本人 | D136: 1 | E136: 集中全护理 | F136: 1648 | G136: 1534 | H136: 3182 | I136: 安溪县第三医院 | J136: 202309
A137: 大坪乡 | B137: 林*和 | C137: 本人 | D137: 1 | E137: 集中全护理 | F137: 1648 | G137: 1534 | H137: 3182 | I137: 虎邱敬老院 | J137: 202309
A138: 大坪乡 | B138: 高*得 | C138: 本人 | D138: 1 | E138: 集中全护理 | F138: 1648 | G138: 1534 | H138: 3182 | I138: 安溪龙人伍心养老院 | J138: 202310
A139: 大坪乡 | B139: 张*贵 | C139: 本人 | D139: 1 | E139: 集中全护理 | F139: 1648 | G139: 1534 | H139: 3182 | I139: 安溪龙人伍心养老院 | J139: 202507
A141: 合计 | D141: =SUM(D4:D140) -> 136 | H141: =SUM(H4:H140) -> 408056

Sheet 城市分散特困
A1: 全县2025年10月城市特困人员分散供养名册
A2: 编制单位：安溪县民政局
A3: 乡镇 | B3: 户主姓名 | C3: 与本人关系 | D3: 保障 人数 | E3: 特困类别 | F3: 基本生活标准 | G3: 照料护理标准 | H3: 供养金额 | I3: 起始保障年月
A4: 凤城镇 | B4: 林*生 | C4: 本人 | D4: 1 | E4: 分散全自理 | F4: 1099 | G4: 205 | H4: =F4+G4 -> 1304 | I4: 202209
A5: 凤城镇 | B5: 黄*生 | C5: 本人 | D5: 1 | E5: 分散全自理 | F5: 1099 | G5: 205 | H5: =F5+G5 -> 1304 | I5: 202312
A6: 凤城镇 | B6: 王*花 | C6: 本人 | D6: 1 | E6: 分散全自理 | F6: 1099 | G6: 205 | H6: 1304 | I6: 202504
A7: 湖头镇 | B7: 李*安 | C7: 本人 | D7: 1 | E7: 分散全自理 | F7: 1099 | G7: 205 | H7: 1304 | I7: 202107
A8: 官桥镇 | B8: 吴*培 | C8: 本人 | D8: 1 | E8: 分散全自理 | F8: 1099 | G8: 205 | H8: 1304 | I8: 201701
A9: 虎邱镇 | B9: 林*集 | C9: 本人 | D9: 1 | E9: 分散全自理 | F9: 1099 | G9: 205 | H9: 1304 | I9: 201101
A10: 虎邱镇 | B10: 林*灵 | C10: 本人 | D10: 1 | E10: 分散全自理 | F10: 1099 | G10: 205 | H10: 1304 | I10: 200901
A11: 虎邱镇 | B11: 林*萍 | C11: 本人 | D11: 1 | E11: 分散全自理 | F11: 1099 | G11: 205 | H11: 1304 | I11: 201301
A12: 合计 | B12: 8户 | D12: =SUM(D4:D11) -> 8 | H12: =SUM(H4:H11) -> 10432
A15: 备注：分散供养基本生活标准：1060（元/人·月）；分散供养照料护理标准：全自理181（元/人·月）、半护理453（元/人·月）、全护理905（元/人·月）

Sheet 城市集中特困
A1: 全县2025年10月份城市特困人员集中供养名册
A2: 编制单位：安溪县民政局
A3: 乡镇 | B3: 户主姓名 | C3: 与本人关系 | D3: 保障 人数 | E3: 特困类别 | F3: 基本生活标准（元/人▪月） | G3: 照料护理标准（元/人▪月） | H3: 供养金额 | I3: 供养机构 | J3: 起始保障年月
A4: 凤城镇 | B4: 安*一 | C4: 本人 | D4: 1 | E4: 集中全护理 | F4: 1648 | G4: 1534 | H4: =F4+G4 -> 3182 | I4: 安溪县第三医院 | J4: 201812
A5: 凤城镇 | B5: 安*二 | C5: 本人 | D5: 1 | E5: 集中全护理 | F5: 1648 | G5: 1534 | H5: =F5+G5 -> 3182 | I5: 安溪县第三医院 | J5: 201812
A6: 凤城镇 | B6: 安*六 | C6: 本人 | D6: 1 | E6: 集中全护理 | F6: 1648 | G6: 1534 | H6: 3182 | I6: 安溪县第三医院 | J6: 201812
A7: 凤城镇 | B7: 安*八 | C7: 本人 | D7: 1 | E7: 集中全护理 | F7: 1648 | G7: 1534 | H7: 3182 | I7: 安溪县第三医院 | J7: 201812
A8: 凤城镇 | B8: 安*九 | C8: 本人 | D8: 1 | E8: 集中全护理 | F8: 1648 | G8: 1534 | H8: 3182 | I8: 安溪县第三医院 | J8: 201812
A9: 凤城镇 | B9: 安*一二 | C9: 本人 | D9: 1 | E9: 集中全护理 | F9: 1648 | G9: 1534 | H9: 3182 | I9: 安溪县第三医院 | J9: 201912
A10: 凤城镇 | B10: 安*一三 | C10: 本人 | D10: 1 | E10: 集中全护理 | F10: 1648 | G10: 1534 | H10: 3182 | I10: 安溪县第三医院 | J10: 202105
A11: 凤城镇 | B11: 安*一四 | C11: 本人 | D11: 1 | E11: 集中全护理 | F11: 1648 | G11: 1534 | H11: 3182 | I11: 安溪县第三医院 | J11: 202105
A12: 凤城镇 | B12: 徐*珍 | C12: 本人 | D12: 1 | E12: 集中全护理 | F12: 1648 | G12: 1534 | H12: 3182 | I12: 安溪龙人伍心养老院 | J12: 201807
A13: 凤城镇 | B13: 戴*成 | C13: 本人 | D13: 1 | E13: 集中半护理 | F13: 1648 | G13: 767 | H13: 2415 | I13: 安溪龙人伍心养老院 | J13: 201904
A14: 凤城镇 | B14: 谢*福 | C14: 本人 | D14: 1 | E14: 集中全护理 | F14: 1648 | G14: 1534 | H14: 3182 | I14: 安溪县第三医院 | J14: 202009
A15: 凤城镇 | B15: 安*一五 | C15: 本人 | D15: 1 | E15: 集中全护理 | F15: 1648 | G15: 1534 | H15: 3182 | I15: 安溪县第三医院 | J15: 202209
A16: 凤城镇 | B16: 安*一六 | C16: 本人 | D16: 1 | E16: 集中全护理 | F16: 1648 | G16: 1534 | H16: 3182 | I16: 安溪县第三医院 | J16: 202209
A17: 凤城镇 | B17: 安*一七 | C17: 本人 | D17: 1 | E17: 集中全护理 | F17: 1648 | G17: 1534 | H17: 3182 | I17: 安溪县第三医院 | J17: 202211
A18: 凤城镇 | B18: 安*一八 | C18: 本人 | D18: 1 | E18: 集中全护理 | F18: 1648 | G18: 1534 | H18: 3182 | I18: 安溪县第三医院 | J18: 202303
A19: 凤城镇 | B19: 安*一九 | C19: 本人 | D19: 1 | E19: 集中全护理 | F19: 1648 | G19: 1534 | H19: 3182 | I19: 安溪县第三医院 | J19: 202405
A20: 凤城镇 | B20: 黄*金 | C20: 本人 | D20: 1 | E20: 集中半护理 | F20: 1648 | G20: 767 | H20: 2415 | I20: 安溪龙人伍心养老院 | J20: 202305
A21: 凤城镇 | B21: 安*二十 | C21: 本人 | D21: 1 | E21: 集中全护理 | F21: 1648 | G21: 1534 | H21: 3182 | I21: 安溪县第三医院 | J21: 202501
A22: 凤城镇 | B22: 安*二一 | C22: 本人 | D22: 1 | E22: 集中全护理 | F22: 1648 | G22: 1534 | H22: 3182 | I22: 安溪县第三医院 | J22: 202508
A23: 凤城镇 | B23: 陈*生 | C23: 本人 | D23: 1 | E23: 集中半护理 | F23: 1648 | G23: 767 | H23: 2415 | I23: 安溪龙人伍心养老院 | J23: 202509
A24: 官桥镇 | B24: 林*宏 | C24: 本人 | D24: 1 | E24: 集中全护理 | F24: 1648 | G24: 1534 | H24: 3182 | I24: 安溪县第三医院 | J24: 201908
A25: 湖头镇 | B25: 李*河 | C25: 本人 | D25: 1 | E25: 集中全护理 | F25: 1648 | G25: 1534 | H25: 3182 | I25: 湖头敬老院 | J25: 202210
A26: 湖头镇 | B26: 李*明 | C26: 本人 | D26: 1 | E26: 集中全护理 | F26: 1648 | G26: 1534 | H26: 3182 | I26: 安溪县乐康医院 | J26: 202211
A27: 虎邱镇 | B27: 林*根 | C27: 本人 | D27: 1 | E27: 集中半护理 | F27: 1648 | G27: 767 | H27: 2415 | I27: 虎邱敬老院 | J27: 201907
A28: 虎邱镇 | B28: 施*告 | C28: 本人 | D28: 1 | E28: 集中半护理 | F28: 1648 | G28: 767 | H28: 2415 | I28: 虎邱敬老院 | J28: 201907
A29: 蓝田乡 | B29: 林*来 | C29: 本人 | D29: 1 | E29: 集中半护理 | F29: 1648 | G29: 767 | H29: 2415 | I29: 蓝田敬老院 | J29: 200801
A30: 蓝田乡 | B30: 徐*成 | C30: 本人 | D30: 1 | E30: 集中全自理 | F30: 1648 | G30: 307 | H30: 1955 | I30: 蓝田敬老院 | J30: 200901
A31: 蓝田乡 | B31: 张*旺 | C31: 本人 | D31: 1 | E31: 集中全自理 | F31: 1648 | G31: 307 | H31: 1955 | I31: 蓝田敬老院 | J31: 201507
A32: 芦田镇 | B32: 王*海 | C32: 本人 | D32: 1 | E32: 集中全护理 | F32: 1648 | G32: 1534 | H32: 3182 | I32: 安溪龙人伍心养老院 | J32: 202105
A33: 芦田镇 | B33: 李*根 | C33: 本人 | D33: 1 | E33: 集中全护理 | F33: 1648 | G33: 1534 | H33: 3182 | I33: 安溪县第三医院 | J33: 202304
A34: 芦田镇 | B34: 黄*灵 | C34: 本人 | D34: 1 | E34: 集中半护理 | F34: 1648 | G34: 767 | H34: 2415 | I34: 虎邱敬老院 | J34: 202501
A35: 蓝田乡 | B35: 颜*树 | C35: 本人 | D35: 1 | E35: 集中全护理 | F35: 1648 | G35: 1534 | H35: 3182 | I35: 蓝田敬老院 | J35: 202204
A36: 合计 | B36: * | D36: =SUM(D4:D35) -> 32 | H36: =SUM(H4:H35) -> 94001
A39: 备注：集中供养基本生活标准：1589（元/人·月）；集中供养照料护理标准：全自理272（元/人·月）、半护理679（元/人·月）、全护理1358（元/人·月）

Sheet 特困汇总表
A1: 2025年10月份全县特困人员有关情况汇总表（送财政）
A2: 报送时间：2025年10月11日 单位:元
A3: 乡镇 名称 | B3: 其中农村 （分散特困对象） | E3: 其中农村 （集中特困对象） | H3: 农村特困合计月金额 | I3: 其中城市 （分散特困对象） | L3: 其中城市 （集中特困对象） | O3: 城市特困合计月金额 | P3: 农村特困和城市特困合计月金额
B4: 户数 | C4: 人数 | D4: 月金额 | E4: 户数 | F4: 人数 | G4: 月金额 | I4: 户数 | J4: 人数 | K4: 月金额 | L4: 户数 | M4: 人数 | N4: 月金额
A5: 凤城 | B5: 5 | C5: 5 | D5: 6826 | E5: 2 | F5: 2 | G5: 3910 | H5: =D5+G5 -> 10736 | I5: 3 | J5: 3 | K5: 3912 | L5: 20 | M5: 20 | N5: 61339 | O5: =K5+N5 -> 65251 | P5: =H5+O5 -> 75987
A6: 城厢 | B6: 34 | C6: 34 | D6: 44336 | E6: 8 | F6: 8 | G6: 24689 | H6: =D6+G6 -> 69025 | O6: =K6+N6 -> 0 | P6: =H6+O6 -> 69025
A7: 参内 | B7: 13 | C7: 13 | D7: 16952 | E7: 5 | F7: 5 | G7: 13916 | H7: 30868 | O7: 0 | P7: 30868
A8: 魁斗 | B8: 18 | C8: 18 | D8: 23472 | E8: 7 | F8: 7 | G8: 21047 | H8: 44519 | O8: 0 | P8: 44519
A9: 蓬莱 | B9: 24 | C9: 24 | D9: 31296 | E9: 8 | F9: 8 | G9: 20854 | H9: 52150 | O9: 0 | P9: 52150
A10: 金谷 | B10: 32 | C10: 32 | D10: 43364 | H10: 43364 | O10: 0 | P10: 43364
A11: 湖头 | B11: 48 | C11: 48 | D11: 62898 | E11: 14 | F11: 14 | G11: 44548 | H11: 107446 | I11: 1 | J11: 1 | K11: 1304 | L11: 2 | M11: 2 | N11: 6364 | O11: 7668 | P11: 115114
A12: 湖上 | B12: 3 | C12: 3 | D12: 3912 | E12: 3 | F12: 3 | G12: 8779 | H12: 12691 | O12: 0 | P12: 12691
A13: 白濑 | B13: 9 | C13: 9 | D13: 12554 | E13: 5 | F13: 5 | G13: 14683 | H13: 27237 | O13: 0 | P13: 27237
A14: 剑斗 | B14: 10 | C14: 10 | D14: 13040 | E14: 4 | F14: 4 | G14: 12728 | H14: 25768 | O14: 0 | P14: 25768
A15: 感德 | B15: 35 | C15: 35 | D15: 47376 | E15: 12 | F15: 12 | G15: 32355 | H15: 79731 | O15: 0 | P15: 79731
A16: 桃舟 | B16: 11 | C16: 11 | D16: 14344 | E16: 1 | F16: 1 | G16: 3182 | H16: 17526 | O16: 0 | P16: 17526
A17: 福田 | B17: 5 | C17: 5 | D17: 6520 | E17: 5 | F17: 5 | G17: 14683 | H17: 21203 | O17: 0 | P17: 21203
A18: 长卿 | B18: 71 | C18: 71 | D18: 93402 | E18: 9 | F18: 9 | G18: 27871 | H18: 121273 | O18: 0 | P18: 121273
A19: 蓝田 | B19: 8 | C19: 8 | D19: 11250 | H19: 11250 | L19: 4 | M19: 4 | N19: 9507 | O19: 9507 | P19: 20757
A20: 祥华 | B20: 19 | C20: 19 | D20: 24776 | E20: 5 | F20: 5 | G20: 15910 | H20: 40686 | O20: 0 | P20: 40686
A21: 官桥 | B21: 33 | C21: 33 | D21: 46910 | E21: 6 | F21: 6 | G21: 18325 | H21: 65235 | I21: 1 | J21: 1 | K21: 1304 | L21: 1 | M21: 1 | N21: 3182 | O21: 4486 | P21: 69721
A22: 龙门 | B22: 31 | C22: 31 | D22: 43284 | E22: 9 | F22: 9 | G22: 28638 | H22: 71922 | O22: 0 | P22: 71922
A23: 虎邱 | B23: 35 | C23: 35 | D23: 47070 | E23: 8 | F23: 8 | G23: 22388 | H23: 69458 | I23: 3 | J23: 3 | K23: 3912 | L23: 2 | M23: 2 | N23: 4830 | O23: 8742 | P23: 78200
A24: 西坪 | B24: 21 | C24: 21 | D24: 27384 | E24: 11 | F24: 11 | G24: 35002 | H24: 62386 | O24: 0 | P24: 62386
A25: 尚卿 | B25: 24 | C25: 24 | D25: 32726 | E25: 3 | F25: 3 | G25: 9546 | H25: 42272 | O25: 0 | P25: 42272
A26: 大坪 | B26: 10 | C26: 10 | D26: 13040 | E26: 4 | F26: 4 | G26: 12728 | H26: 25768 | O26: 0 | P26: 25768
A27: 芦田 | B27: 8 | C27: 8 | D27: 10738 | E27: 3 | F27: 3 | G27: 9546 | H27: 20284 | L27: 3 | M27: 3 | N27: 8779 | O27: 8779 | P27: 29063
A28: 龙涓 | B28: 17 | C28: 17 | D28: 22168 | E28: 4 | F28: 4 | G28: 12728 | H28: 34896 | O28: 0 | P28: 34896
A29: 合计 | B29: =SUM(B5:B28) -> 524 | C29: 524 | D29: 699638 | E29: 136 | F29: 136 | G29: 408056 | H29: 1107694 | I29: 8 | J29: 8 | K29: 10432 | L29: 32 | M29: 32 | N29: 94001 | O29: 104433 | P29: 1212127
A30: 单位负责人： 分管领导： 制表人：
A31: 备注：分散供养699638+10432=710070元，汇往信用社代发；集中供养408056+94001=502057元，汇往各相关福利机构
